Cogmind - Beta 16 @@@ ROGUE MODE // 2025.10.29 @ 22:33:00 Player: Zish Result: Destroyed by as-78899 with Assembled Heavy Rifle Performance ------------- Evolutions (0) 0 Regions Visited (4) 800 Robots Destroyed (6) 30 Value Destroyed (56) 56 Prototype IDs (1) 20 Alien Tech Used (0) 0 Bonus (300) 300 TOTAL SCORE: 1206 Bonus ------- Aligned with FarCom 300 Cogmind --------- Core Integrity 0/250 Matter 256/300 Energy 52/100 System Corruption 0% Temperature Cool (6) Movement Flying (37) Location -9/Mines Parts ------- > --- POWER (1) -------- (None) > --- PROPULSION (2) --- Flight Unit Flight Unit > --- UTILITY (2) ------ Small Storage Unit Trap Reconfigurator > --- WEAPON (2) ------- (None) > --- INVENTORY (8) ---- Light Ion Engine Flight Unit Flight Unit Small Laser Peak State ------------ > --- POWER ------------ Ion Engine > --- PROPULSION ------- Light Treads Light Treads > --- UTILITY ---------- Small Storage Unit Trap Reconfigurator > --- WEAPON ----------- Assault Rifle Grenade Launcher > --- INVENTORY -------- Light Ion Engine Flight Unit Flight Unit Flight Unit Flight Unit Small Laser [Rating: 15] Favorites ----------- Power Ion Engine Engine Ion Engine Propulsion Light Treads Treads Light Treads Flight Unit Flight Unit Utility Small Storage Unit Device Trap Reconfigurator Storage Small Storage Unit Weapon Assault Rifle Energy Gun EM Pulse Gun Ballistic Gun Assault Rifle Launcher Grenade Launcher Build | -11 -10 -10 -10 -9 ------- Run | Yrd Mat Min Exi Min Slots Evolved . | . . . . . Power . | . . . . . Propulsion . | . . . . . Utility . | . . . . . Weapon . | . . . . . Parts Attached 10 | 5 1 1 1 2 Power 1 | . 1 . . . Engine 1 | . 1 . . . Core . | . . . . . Reactor . | . . . . . Propulsion 4 | 2 . . . 2 Treads 2 | 2 . . . . Leg . | . . . . . Wheel . | . . . . . Hover . | . . . . . Flight 2 | . . . . 2 Utility 2 | 1 . . 1 . Device 1 | . . . 1 . Storage 1 | 1 . . . . Processor . | . . . . . Hackware . | . . . . . Protection . | . . . . . Artifact . | . . . . . Weapon 3 | 2 . 1 . . Energy Gun 1 | 1 . . . . Energy Cannon . | . . . . . Ballistic Gun 1 | 1 . . . . Ballistic Cannon . | . . . . . Launcher 1 | . . 1 . . Special Weapon . | . . . . . Impact Weapon . | . . . . . Slashing Weapon . | . . . . . Piercing Weapon . | . . . . . Special Melee Weapon . | . . . . . Unidentified Prototypes 1 | . . . 1 . Parts Lost 4 | . . . . 4 Power 1 | . . . . 1 Propulsion 1 | . . . . 1 Utility . | . . . . . Weapon 2 | . . . . 2 Highest Loss Streak 4 | . . . . 4 To Critical Strikes . | . . . . . Average Backups 6 | 3 4 5 7 6 Power 1 | 1 1 1 1 1 Propulsion 4 | . 2 3 5 4 Utility . | . . . . . Weapon 1 | 1 1 1 1 1 Tool/Special . | . . . . . Unused Backups 8 | 1 . 1 2 4 Power 1 | . . . . 1 Propulsion 6 | 1 . 1 2 2 Utility . | . . . . . Weapon 1 | . . . . 1 Tool/Special . | . . . . . Average Slot Usage (%) 86 | . 85 85 87 74 Engine 13 | . 14 14 14 7 Treads 27 | . 28 28 28 24 Device 2 | . . . 2 14 Storage 14 | . 14 14 14 14 Energy Gun 3 | . 14 10 . . Ballistic Gun 13 | . 14 14 14 7 Launcher 10 | . . 3 14 7 Peak Build Rating 15 | 5 6 6 15 15 Average Rating 7 | 3 6 6 7 13 On Entrance 6 | . 5 6 6 15 Avg Prop Armor Cover (%) . | . . . . . Naked Turns . | . . . . . Heaviest Build 16 | 9 14 15 16 16 Greatest Support 40 | 40 40 40 40 40 Greatest Overweight (x) . | . . . . . Average Overweight (x) . | . . . . . Largest Inventory Capacity 8 | 8 8 8 8 8 Average Capacity 7 | 6 8 8 8 8 Most Carried 8 | 5 4 8 8 6 Average Carried 6 | 3 4 5 7 5 Final Capacity 8 | 8 8 8 8 8 Final Carried 8 | 5 4 8 6 4 Class Distribution -------------------- 100% | Mutant Dominant Class ---------------- Mutant | -10/Materials Mutant | -10/Mines Mutant | -10/Exiles Mutant | -9/Mines Resources | -11 -10 -10 -10 -9 ----------- Run | Yrd Mat Min Exi Min Matter Collected 277 | 213 47 15 . 2 Remotely . | . . . . . Salvage Created 168 | . . 131 . 37 Parts 12 | . . 9 . 3 Haulers Intercepted . | . . . . . Recyclers Shooed . | . . . . . Parts Field Recycled . | . . . . . Retrieved Matter . | . . . . . Parts Self-Destructed . | . . . . . Prevented . | . . . . . Parts Restored . | . . . . . Kills | -11 -10 -10 -10 -9 ------- Run | Yrd Mat Min Exi Min Combat Hostiles Destroyed 9 | . . 3 . 6 Guns 3 | . . 3 . . AOE 6 | . . . . 6 Classes Destroyed 3 | . . 2 . 1 Recycler 1 | . . 1 . . Swarmer 5 | . . 3 . 2 Assembled 4 | . . . . 4 Best Kill Streak 6 | . . 4 . 6 Combat Bots Only 6 | . . 3 . 6 Max Kills in Single Turn 4 | . . 2 . 4 Gunslinging 1 | . . 1 . . Exploded 4 | . . . . 4 Melee . | . . . . . Uniques/NPCs Destroyed . | . . . . . Combat | -11 -10 -10 -10 -9 -------- Run | Yrd Mat Min Exi Min Hostile Shots Fired 65 | . 2 6 . 57 Missed 24 | . 1 3 . 20 Hits 41 | . 1 3 . 37 Melee 10 | . . . . 10 Projectile 31 | . 1 3 . 27 Critical Strikes 1 | . . . . 1 Damage Taken 789 | . 8 29 . 752 Core 264 | . 8 19 . 237 Absorbed by Shields . | . . . . . Core Remaining (%) 100 | 100 . . . . Volleys Fired 7 | . . 5 . 2 Largest 2 | . . 2 . 2 Hottest 60 | . . 60 . 50 Shots Fired 14 | . . 10 . 4 Gun 12 | . . 10 . 2 Cannon . | . . . . . Launcher 2 | . . . . 2 Special . | . . . . . Kinetic 7 | . . 5 . 2 Thermal . | . . . . . Explosive 2 | . . . . 2 Electromagnetic 5 | . . 5 . . Robot Hit Streak 4 | . . 4 . 4 Robot Miss Streak 2 | . . 2 . 1 Penetration Max . | . . . . . Secondary Targets 1 | . . 1 . . Max Gunslinging Chain 1 | . . 1 . . Shots Hit Robots 9 | . . 6 . 3 Core Hits 15 | . . 5 . 10 Critical Kills . | . . . . . Critical Parts Destroyed . | . . . . . Critical Strikes . | . . . . . Melee Attacks . | . . . . . Impact . | . . . . . Slashing . | . . . . . Piercing . | . . . . . Sneak Attacks . | . . . . . Combat Hostiles . | . . . . . Follow-up Attacks . | . . . . . Damage Inflicted 415 | . . 73 . 342 Guns 88 | . . 73 . 15 Cannons . | . . . . . Explosions 327 | . . . . 327 Melee . | . . . . . Ramming . | . . . . . Kinetic 38 | . . 23 . 15 Thermal . | . . . . . Explosive 327 | . . . . 327 Electromagnetic 50 | . . 50 . . Impact . | . . . . . Slashing . | . . . . . Piercing . | . . . . . Highest Corruption . | . . . . . Average Corruption . | . . . . . Corruption Purged . | . . . . . Corruption Blocked . | . . . . . Overload Shots . | . . . . . Overflow Damage 14 | . . . . 14 Projectiles . | . . . . . Explosions 14 | . . . . 14 Melee . | . . . . . Knockbacks . | . . . . . Impact . | . . . . . Kinetic . | . . . . . Secondary . | . . . . . Self-Inflicted Damage 71 | . . . . 71 Shots 2 | . . . . 2 Rammed . | . . . . . Targets Rammed . | . . . . . Kicked . | . . . . . Crushed . | . . . . . Highest Temperature . | . . . . . Average Temperature . | . . . . . Received Heat Transfer 20 | . . . . 20 Siege Activations . | . . . . . Martial Activations . | . . . . . Shielding Activations . | . . . . . Robots Disrupted . | . . . . . Combat Hostiles . | . . . . . Robots Corrupted . | . . . . . Combat Hostiles . | . . . . . Parts Fried . | . . . . . Impact Corruptions . | . . . . . Robots Melted . | . . . . . Combat Hostiles . | . . . . . Parts Melted . | . . . . . Heat Transferred . | . . . . . Parts Sabotaged . | . . . . . Parts Stolen . | . . . . . Parts Stripped . | . . . . . Power Chain Reactions . | . . . . . Alert | -11 -10 -10 -10 -9 ------- Run | Yrd Mat Min Exi Min Maximum Alert Level . | . . . . . Low Security (%) 100 | 100 100 100 . 100 Level 1 . | . . . . . Level 2 . | . . . . . Level 3 . | . . . . . Level 4 . | . . . . . Level 5 . | . . . . . High Security . | . . . . . Max Security . | . . . . . Peak Influence 62 | . 4 60 . 62 Initial . | . . . . . Average 10 | . . 19 . 34 Influence Increases 141 | . 4 75 . 62 Destroy 0b10 Robot/C 100 | . . 60 . 40 Destroy 0b10 Robot/NC 5 | . . 5 . . Destroy Leader 20 | . . 10 . 10 Successful Hack 4 | . 4 . . . Destroy Structure 12 | . . . . 12 Influence Decreases 129 | . 4 75 . 50 Time Decay 89 | . 4 75 . 10 Lost Part 40 | . . . . 40 Squads Dispatched 2 | . 2 . . . Investigation 1 | . 1 . . . Extermination . | . . . . . Reinforcement 1 | . 1 . . . Assault . | . . . . . Garrison . | . . . . . Intercept . | . . . . . Searches Triggered . | . . . . . Construction Impeded . | . . . . . Haulers Reinforced . | . . . . . Active Scanning Responses . | . . . . . Cargo Convoy Interrupts . | . . . . . Stealth | -11 -10 -10 -10 -9 --------- Run | Yrd Mat Min Exi Min Distress Signals 1 | . 1 . . . Communications Jammed . | . . . . . Distress Signals . | . . . . . Times Spotted 29 | . 4 3 . 22 Peak Tracking Total 21 | . 2 3 . 21 Tactical Retreats . | . . . . . Traps | -11 -10 -10 -10 -9 ------- Run | Yrd Mat Min Exi Min Traps Triggered 1 | . 1 . . . Indirectly . | . . . . . Trap Hack Attempts . | . . . . . Triggered . | . . . . . Disarmed . | . . . . . Reprogrammed . | . . . . . Reused . | . . . . . Traps Extracted . | . . . . . Installed . | . . . . . Triggered . | . . . . . Machines | -11 -10 -10 -10 -9 ---------- Run | Yrd Mat Min Exi Min Machines Disabled . | . . . . . Max in Single Turn . | . . . . . Machines Repaired . | . . . . . Machines Dismantled . | . . . . . Machines Sabotaged . | . . . . . Overloaded Fab Kills . | . . . . . Hacking | -11 -10 -10 -10 -9 --------- Run | Yrd Mat Min Exi Min Machines Accessed 3 | . 1 . 2 . Terminals 1 | . 1 . . . Fabricators . | . . . . . Repair Stations . | . . . . . Recycling Units . | . . . . . Scanalyzers . | . . . . . Garrison Access . | . . . . . Total Hacks 34 | . 2 . 32 . Successful 33 | . 1 . 32 . Failed 1 | . 1 . . . Catastrophic . | . . . . . Database Lockouts . | . . . . . Manual 1 | . . . 1 . Terminals 2 | . 2 . . . Fabricators . | . . . . . Repair Stations . | . . . . . Recycling Units . | . . . . . Scanalyzers . | . . . . . Garrison Access . | . . . . . Terminal Hacks 33 | . 1 . 32 . Record 32 | . . . 32 . Dispatch Records 1 | . 1 . . . Fabricator Hacks . | . . . . . Repair Station Hacks . | . . . . . Recycling Unit Hacks . | . . . . . Scanalyzer . | . . . . . Garrison Access Hacks . | . . . . . Unauthorized Hacks . | . . . . . Terminals . | . . . . . Fabricators . | . . . . . Repair Stations . | . . . . . Recycling Units . | . . . . . Scanalyzers . | . . . . . Garrison Access . | . . . . . Data Cores Recovered . | . . . . . Used . | . . . . . Hacking Detections 1 | . 1 . . . Full Trace Events . | . . . . . Feedback Events . | . . . . . Feedback Blocked . | . . . . . Robot Schematics Acquired . | . . . . . Robots Built . | . . . . . Authchips . | . . . . . Time . | . . . . . Total Robot Build Rating . | . . . . . Part Schematics Acquired . | . . . . . Parts Built . | . . . . . Authchips . | . . . . . Time . | . . . . . Total Part Build Rating . | . . . . . Part Studies Acquired . | . . . . . Parts Repaired . | . . . . . Time . | . . . . . Parts Recycled . | . . . . . Recycled Matter . | . . . . . Retrieved Matter . | . . . . . Retrieved Components . | . . . . . Parts Scanalyzed . | . . . . . Part Schematics Acquired . | . . . . . Parts Damaged . | . . . . . Bothacking | -11 -10 -10 -10 -9 ------------ Run | Yrd Mat Min Exi Min Used RIF Installer . | . . . . . Robots Hacked . | . . . . . Non-combat . | . . . . . Combat . | . . . . . Robot Hacks Applied . | . . . . . Relay Couplers Released . | . . . . . Fabnet Peak Effective % . | . . . . . Robots Rewired . | . . . . . Allies Hacked . | . . . . . Hacks Repelled . | . . . . . Allies | -11 -10 -10 -10 -9 -------- Run | Yrd Mat Min Exi Min Total Allies . | . . . . . Largest Group . | . . . . . Highest-Rated Group . | . . . . . Highest-Rated Ally . | . . . . . Total Orders . | . . . . . Ally Attacks . | . . . . . Total Damage . | . . . . . Kills . | . . . . . Allies Corrupted . | . . . . . Allies Melted . | . . . . . Intel | -11 -10 -10 -10 -9 ------- Run | Yrd Mat Min Exi Min Active Infowar (turns) . | . . . . . Robot Analysis Total . | . . . . . Derelict Logs Recovered . | . . . . . Drone Launches . | . . . . . Drone Recoveries . | . . . . . Exploration | -11 -10 -10 -10 -9 ------------- Run | Yrd Mat Min Exi Min Turns Passed 1647 | 96 223 244 1046 38 Spaces Moved 1009 | 66 131 138 650 24 Core 23 | 23 . . . . Treads 979 | 43 131 138 650 17 Legs . | . . . . . Wheels . | . . . . . Hover . | . . . . . Flight 7 | . . . . 7 Fastest Speed 37 | 50 160 160 160 37 Average Speed 156 | 121 160 160 160 124 Slowest Speed 160 | 160 160 160 160 160 Overloaded Moves . | . . . . . Propulsion Burnouts . | . . . . . Robots Hopped . | . . . . . Potential Cave-ins . | . . . . . Cave-ins Triggered . | . . . . . Exploration Rate (%) 39 | 4 34 48 93 19 Regions Visited 4 Branch Regions 3 Pre-discovered Areas 1 | . . . 1 . Known Exits Taken . | . . . . . Unknown Exits Taken 4 | 1 1 1 1 . Scrap Searched 1 | . . 1 . . Spaces Dug . | . . . . . Terrain Destroyed 15 | . . . . 15 Melee . | . . . . . Projectile . | . . . . . AOE 15 | . . . . 15 Terrain Rammed . | . . . . . Walls Destroyed . | . . . . . Machines Disabled . | . . . . . Actions | -11 -10 -10 -10 -9 --------- Run | Yrd Mat Min Exi Min Total 1065 | 82 145 152 657 29 Wait 18 | . 14 . 4 . Move 1005 | 65 130 137 649 24 Hop . | . . . . . Pick Up 18 | 11 . 6 1 . Fast Attach . | . . . . . Attach 10 | 5 1 1 1 2 Detach . | . . . . . Swap . | . . . . . Drop 6 | 1 . 2 2 1 Fire 7 | . . 5 . 2 Melee . | . . . . . Ram . | . . . . . Kick . | . . . . . Crush . | . . . . . Escape Stasis . | . . . . . Rewire 1 | . . 1 . . Trap . | . . . . . Miscellaneous . | . . . . . Route ------- -11/Scrapyard -10/Materials -10/Mines -10/Exiles -9/Mines History --------- Turn | Location | Event 9 | -11/Scrapyard | Discovered new exit (range 15) 97 | -11/Scrapyard | Entered Materials 98 | -10/Materials | Met a group of wandering Federalists 264 | -10/Materials | Discovered new exit (range 15) 308 | -10/Materials | Build established: Mutant 320 | -10/Materials | Entered Mines 552 | -10/Mines | Deemed a non-threat by the Exiles lab entrance 554 | -10/Mines | Discovered new exit (range 5) 564 | -10/Mines | Entered Exiles 601 | -10/Exiles | Met 8R-AWN 632 | -10/Exiles | Met EX-HEX 728 | -10/Exiles | Met EX-DEC 761 | -10/Exiles | Learned location of Zion (-7) 846 | -10/Exiles | Discovered new exit (range 10) 997 | -10/Exiles | Visited The Gauntlet 1275 | -10/Exiles | Met EX-BIN 1312 | -10/Exiles | Aligned with FarCom system 1313 | -10/Exiles | Given EX-Vault access code 1400 | -10/Exiles | Opened EX-Vault 1409 | -10/Exiles | Found Prototype Device 1410 | -10/Exiles | Identified Trap Reconfigurator 1443 | -10/Exiles | Warned to stay clear of 0b10 Research branches 1610 | -10/Exiles | Left Exiles lab with Trap Reconfigurator 1610 | -10/Exiles | Entered Mines 1611 | -9/Mines | Assembled infested the area 1643 | -9/Mines | Core integrity fell below 50% 1646 | -9/Mines | Core integrity fell below 20% 1648 | -9/Mines | Destroyed by as-78899 with Assembled Heavy Rifle Last Messages --------------- 01610_ Destroyed Flight Unit. 01610_ S-10 Pest destroyed. 01611_ ALERT: Infestation in the mines, dispatching Demolisher response squad. [Achievement: Hunted] 01613_ Acquired 2 matter. 01614_ S-10 Pest destroyed. 01620_ as-56465 destroyed. 01620_ as-49318 destroyed. 01620_ as-32621 destroyed. 01620_ as-62920 destroyed. 01622_ Grenade Launcher destroyed. 01624_ Ion Engine destroyed. 01629_ Assault Rifle destroyed. 01631_ as-70561 destroyed. 01633_ The unstable cave ceiling collapses. 01635_ as-25943 destroyed. 01638_ Lgt. Treads destroyed. 01638_ as-76486 destroyed. 01644_ Dropped Lgt. Treads. Map ----- +----------------------------------------------------+ | ?????????????????????????????????????????????????? | | ?????????????????????????????????????????????????? | | ?????????????????????????????????????????????????? | | ?????????????????????????????????????????????????? | | ?????????????????????????????????????????????????? | | ?????????????????????????????????????????????????? | | ?????????????????????????????????????????????????? | | ?????????????????????????????????????????????????? | | ?????????????????????????????????????????????????? | | ?????????????????????????????????????????????????? | | ?????????????????????????????????????????????????? | | ??????????????????????????C??????????????????????? | | ?????????????????????????????????????????????????? | | ?????????????????????????????????????????????????? | | ?????????????????????????????????????????????????? | | ?????????????????????????????????????????????????? | | ?????????????????????????????????????????????????? | | ????????????????????????###??????????????????????? | | ????????????????????????# ??????????????????????? | | ????????????????????????# #??????????????????????? | | ????????????????????????# #??????????????????????? | | ????????????????????????# ##?????????????????????? | | ???????? ??????????## ##????????????????????? | | ?????? ??????????# #????????????????????? | | ????? ?????????# ##???????????????????? | | ????# ????????## @ #???????????????????? | | ????# ???????# #???????????????????? | | ????? ??????## ##???????????????????? | | ?????? #?????## ##????????????????????? | | ???????# ##???## ##?????????????????????? | | ????????# ##### a ####??????????????????????? | | ?????????# ## a ##?????????????????????????? | | ????????## a= #??????????????????????????? | | ??????### a a ##??????????????????????????? | | ??????# aa####???????????????????????????? | | ? #### a ##??????????????????????????????? | | %##??????????????????????????????? | | $ ###########????????????????????? | | ??###### % ??????????????????? | | ???##### ??????????????????? | | ???# ##########???????????????????? | | ???## #% % #????????????????????????????? | | ## % # ## ##????????????????????????????? | | % ### #?###?????????????????????????????? | | % % #?# #?????????????????????????????????? | | ### [=% #?????????????????????????????????? | | ???# #####?????????????????????????????????? | | ??# ## ##?????????????????????????????????????? | | ??####?####??????????????????????????????????????? | | ?????????????????????????????????????????????????? | +----------------------------------------------------+ Best States ------------- Heat Dissipation 25 Energy Generation 10 Energy Capacity 250 Matter Stores 300 Matter Capacity 300 Sight Range 16 Terrain Scan Density 10 Evasion (%) 40 Recoil Reduction 2 Item Schematics ----------------- None Robot Schematics ------------------ None Fabricated ------------ Nothing Repaired ---------- Nothing Studied --------- None Alien Tech Used ----------------- None Achievements -------------- Hunted I Have A Map? Sixth Sense Challenges ------------ None Game ------ Seed CloakShockboltFirepult Manual? 0 Play Time 00:11:25 Cumulative 15.8 hours Start 2025.10.29 @ 22:20:47 End 2025.10.29 @ 22:33:00 Sessions 1 Manual Loads 0 Difficulty Rogue Special Mode None Game No. 38 Rogue 38 Adventurer 0 Explorer 0 Win Type - Total 0 Types 0/0/0/0/0/0/0/0/0/0 Lore% 9 Gallery% 20 Achievement% 14 Wizard Run 0 Options --------- Layout 1 ASCII 0 Keyboard 0 Movement Arrows Keybinds 0 Fullscreen 1 Font 24/Smallcaps Map View 50x35 Zoom Use 0% Tactical HUD 1 Map Filters NONE Filters NONE Steam 1 RUN: 581e1154-5ebe-48a7-9213-73ed896de5c6